bitfinex-derivatives/quotes_BNBF0:USTF0_20250331
["timestamp","ask_amount","ask_price","bid_price","bid_amount"]
[1743390477191,2.47322,605.67,603.92,0.33116969]
[1743390477491,0.33022372,605.65,603.92,0.33116969]
[1743390477689,2.47353425,605.64,603.92,0.33116969]
[1743390477887,0.33024008,605.62,603.92,0.33116969]
[1743390478090,2.47353425,605.61,603.92,0.33116969]
[1743390478292,2.80378524,605.6,603.92,0.33116969]
[1743390478490,3.89334369,605.59,603.92,0.33116969]
[1743390478792,4.0831937,605.58,603.92,0.33116969]
[1743390479087,4.08319916,605.57,603.92,0.33116969]
[1743390479287,0.28775313,605.69,603.92,0.33116969]
[1743390479288,5.17275761,605.56,603.92,0.33116969]
[1743390479489,4.08359239,605.55,603.92,0.33116969]
[1743390479690,4.08359785,605.54,603.92,0.33116969]
[1743390479989,5.1731563,605.53,603.92,0.33116969]
[1743390480189,4.08360876,605.52,603.92,0.33116969]
[1743390480490,5.17316721,605.51,603.92,0.33116969]
[1743390480694,4.08361967,605.5,603.92,0.33116969]
[1743390480895,4.84286714,605.49,603.92,0.33116969]
[1743390481192,3.75322972,605.48,603.92,0.33116969]
[1743390481390,5.17310461,605.47,603.92,0.33116969]
[1743390481590,4.08355707,605.46,603.92,0.33116969]
[1743390481787,3.8030812,605.45,603.92,0.33116969]
[1743390481989,3.75322972,605.44,603.92,0.33116969]
[1743390482191,2.38319539,605.43,603.92,0.33116969]
[1743390482386,0.30387645,605.42,603.92,0.33116969]
[1743390482991,0.33033281,605.45,603.92,0.33116969]
[1743390483193,0.28783524,605.41,603.92,0.33116969]
[1743390483988,0.28783524,605.41,603.91,0.28783524]
[1743390485691,2.17000389,605.76,603.05,2.49252141]
[1743390485893,2.47380485,605.75,603.05,2.49252141]
[1743390486189,3.56335785,605.74,603.05,2.49252141]
[1743390486395,2.47375749,605.73,603.05,2.49252141]
[1743390486588,2.47375749,605.72,603.05,2.49252141]
[1743390486792,3.56331049,605.71,603.05,2.49252141]
[1743390486990,2.47375749,605.7,603.05,2.49252141]
[1743390487194,2.47375749,605.69,603.06,2.78034356]
[1743390487393,1.67415027,605.68,603.06,2.78034356]
[1743390487589,1.67415027,605.67,603.06,2.78034356]
[1743390487793,2.76370327,605.66,603.06,2.78034356]
[1743390487991,1.67415027,605.65,603.06,2.78034356]
[1743390488300,2.76370327,605.64,603.06,2.78034356]
[1743390488495,1.67397869,605.63,603.26,2.49252141]
[1743390488699,0.30380096,605.62,603.26,2.49252141]
[1743390488993,1.96178655,605.62,603.26,2.49252141]
[1743390489191,1.39335396,605.61,603.26,2.49252141]
[1743390489392,0.30380096,605.6,603.26,2.49252141]
[1743390489597,1.39335396,605.6,603.22,2.49252141]
[1743390489794,0.30380096,605.59,603.22,2.49252141]
[1743390489999,1.39335396,605.59,603.22,2.49252141]
[1743390490200,1.39335396,605.58,603.22,2.49252141]
[1743390490394,0.30380096,605.57,603.22,2.49252141]
[1743390490796,1.089553,605.6,603.22,2.49252141]
[1743390491000,0.30380072,605.59,603.22,2.49252141]
[1743390491201,1.39335372,605.59,603.22,2.49252141]
[1743390491498,0.30380072,605.58,603.22,2.49252141]
[1743390491702,1.39335372,605.58,603.22,2.49252141]
[1743390491902,0.30380072,605.57,603.22,2.49252141]
[1743390492102,0.30380072,605.57,603.26,2.49252141]
[1743390492297,0.5916193,605.57,603.26,2.49252141]
[1743390492507,0.28781858,605.57,603.26,2.49252141]
[1743390492699,0.30379653,605.56,603.26,2.49252141]
[1743390494203,0.28781858,605.57,603.26,2.49252141]
[1743390494509,0.28781858,605.57,603.17,0.28781858]
[1743390494510,0.30377216,605.56,603.31,2.49252141]
[1743390495105,0.59160978,605.55,603.31,2.49252141]
[1743390495405,1.39332516,605.54,603.31,2.49252141]
[1743390495603,0.30377216,605.53,603.31,2.49252141]
[1743390496105,0.28783762,605.55,603.31,2.49252141]
[1743390496106,1.39332516,605.52,603.31,2.49252141]
[1743390496302,0.30377216,605.51,603.23,0.28783762]
[1743390496802,1.39332516,605.53,603.23,0.28783762]
[1743390497002,0.30377216,605.52,603.23,0.28783762]
[1743390497515,0.30377216,605.51,603.4,2.49252141]
[1743390497806,0.30377216,605.5,603.4,2.49252141]
[1743390498107,0.30388238,605.49,603.4,2.49252141]
[1743390498305,0.30388238,605.48,603.4,2.49252141]
[1743390498506,0.30388238,605.47,603.4,2.49252141]
[1743390498707,0.30388238,605.46,603.55,2.49252141]
[1743390498903,0.30388238,605.45,603.55,2.49252141]
[1743390499110,0.30388238,605.49,603.55,2.49252141]
[1743390500504,0.30388238,605.49,603.4,2.49252141]
[1743390500903,0.30388238,605.48,603.4,2.49252141]
[1743390501103,0.30388238,605.47,603.4,2.49252141]
[1743390501508,0.30388464,605.46,603.4,2.49252141]
[1743390501708,0.30388464,605.47,603.4,2.49252141]
[1743390501908,0.30388464,605.46,603.4,2.49252141]
[1743390502110,0.30388464,605.45,603.34,0.28783762]
[1743390502311,0.30388464,605.44,603.34,0.28783762]
[1743390502511,0.30388464,605.47,603.34,0.28783762]
[1743390502707,0.30388464,605.46,603.34,0.28783762]
[1743390503010,0.30388464,605.45,603.34,0.28783762]
[1743390503205,0.30391069,605.44,603.34,0.28783762]
[1743390503409,0.30391069,605.46,603.34,0.28783762]
[1743390503607,0.30391069,605.45,603.34,0.28783762]
[1743390503810,1.089553,605.44,603.34,0.28783762]
[1743390504012,0.30391069,605.43,603.34,0.28783762]
[1743390504214,1.089553,605.42,603.34,0.28783762]
[1743390504406,0.30391069,605.41,603.34,0.28783762]
[1743390504712,1.089553,605.4,603.34,0.28783762]
[1743390504912,0.30391069,605.39,603.34,0.28783762]
[1743390505411,0.30391069,605.38,603.34,0.28783762]
[1743390505605,1.39346369,605.44,603.34,0.28783762]
[1743390505806,0.30391069,605.43,603.34,0.28783762]
[1743390506006,1.39346369,605.43,603.34,0.28783762]
[1743390506312,0.30391069,605.42,603.34,0.28783762]
[1743390506611,1.089553,605.41,603.34,0.28783762]
[1743390506814,0.30391069,605.4,603.07,2.49252141]
[1743390507113,1.39346369,605.4,603.34,0.28790787]
[1743390507412,0.30391069,605.39,603.07,2.49252141]
[1743390507706,1.39346369,605.39,603.07,2.49252141]
[1743390507912,1.39346369,605.38,603.04,2.49252141]
[1743390508112,0.30391069,605.37,603.04,2.49252141]
[1743390508306,1.37029423,605.36,603.08,0.2879305]
[1743390508508,0.30391069,605.35,603.08,0.2879305]
[1743390508709,1.089553,605.34,603.08,0.2879305]
[1743390508911,1.67477568,605.33,603.08,0.2879305]
[1743390509106,2.76432868,605.32,603.08,0.2879305]
[1743390509308,1.67477568,605.31,603.08,0.2879305]
[1743390509512,1.39346369,605.3,603.08,2.78045191]
[1743390509712,1.67477568,605.29,603.08,2.78045191]
[1743390509912,0.30391069,605.28,603.08,2.78045191]
[1743390510107,1.39346369,605.28,603.08,2.78045191]
[1743390510313,0.30391069,605.27,603.08,2.78045191]
[1743390510514,0.30399434,605.26,603.08,2.78045191]
[1743390510714,0.30399434,605.25,603.08,2.78045191]
[1743390510909,1.089553,605.25,603.08,2.78045191]
[1743390511113,0.30399434,605.24,603.08,2.78045191]
[1743390511316,1.089553,605.23,603.08,0.2879305]
[1743390511514,0.30399434,605.22,603.08,0.2879305]
[1743390511810,1.39354734,605.22,603.08,0.2879305]
[1743390512015,0.30399434,605.21,603.08,0.2879305]
[1743390512215,3.25988437,605.23,603.08,0.2879305]
[1743390512416,2.47432835,605.22,603.16,2.49252141]
[1743390512611,0.30399698,605.21,603.16,2.49252141]
[1743390513009,0.59195369,605.21,603.16,2.49252141]
[1743390513214,0.30399698,605.2,603.16,2.49252141]
[1743390513809,0.30399698,605.2,603.14,2.49252141]
[1743390514917,0.30399698,605.2,603.11,2.78047812]
[1743390515716,0.30399698,605.2,603.11,2.49252141]
[1743390515916,1.089553,605.27,603.11,2.49252141]
[1743390516111,0.59196049,605.19,603.11,2.78048527]
[1743390516313,0.30399663,605.18,603.11,2.78048527]
[1743390516510,0.33048564,605.17,603.21,0.33155949]
[1743390516713,0.30399663,605.16,603.21,0.33155949]
[1743390516910,0.63448773,605.16,603.21,0.33155949]
[1743390517113,0.30399663,605.15,603.21,0.33155949]
[1743390517724,0.61838468,605.16,603.21,0.33155949]
[1743390518025,0.30399671,605.15,603.21,0.33155949]
[1743390520121,0.28797934,605.14,603.21,0.33155949]
[1743390520323,0.30399671,605.13,603.21,0.33155949]
[1743390522027,0.30399671,605.15,603.21,0.33155949]
[1743390522230,0.30399671,605.14,603.21,0.33155949]
[1743390522529,0.30399671,605.13,603.21,0.33155949]
[1743390522730,0.30399671,605.15,603.21,0.33155949]
[1743390523029,0.30399671,605.14,603.21,0.33155949]
[1743390523226,0.28798173,605.12,603.21,0.33155949]
[1743390523430,0.30399671,605.11,603.21,0.33155949]
[1743390524927,0.30399671,605.15,603.21,0.33155949]
[1743390525131,0.2879436,605.1,603.21,0.33155949]
[1743390525332,0.30399671,605.09,603.21,0.33155949]
[1743390526328,0.30399671,605.09,603.35,2.49252141]
[1743390526530,0.30399671,605.09,603.37,0.33147156]
[1743390527933,0.30399671,605.15,603.37,0.33147156]
[1743390528133,0.28791025,605.08,603.37,0.33147156]
[1743390528433,0.30399671,605.07,603.37,0.33147156]
[1743390529736,0.30399671,605.07,603.42,2.49252141]
[1743390530034,0.30399671,605.07,603.44,0.33143311]
[1743390530927,1.54299671,605.07,603.44,0.33143311]
[1743390531131,0.59190101,605.06,603.44,0.33143311]
[1743390531333,0.2879043,605.06,603.46,2.49252141]
[1743390531636,0.2879043,605.06,603.48,0.33141114]
[1743390533943,1.239,605.07,603.48,0.33141114]
[1743390534138,0.28790787,605.05,603.48,0.33141114]
[1743390534737,0.30391302,605.04,603.48,0.33141114]
[1743390535644,0.28790787,605.05,603.48,0.33141114]
[1743390536042,0.28790787,605.05,603.48,2.82393255]
[1743390536845,1.239,605.07,603.48,2.82393255]
[1743390537237,0.28789834,605.05,603.48,0.33141114]
[1743390538043,0.3039695,605.04,603.48,0.33141114]
[1743390539144,0.28789834,605.05,603.48,0.33141114]
[1743390539343,0.30397044,605.04,603.48,0.33141114]
[1743390540144,0.30397044,605.06,603.48,0.33141114]
[1743390540445,0.30397044,605.05,603.48,0.33141114]
[1743390540640,0.30397044,605.04,603.48,0.33141114]
[1743390540838,1.239,605.07,603.48,0.33141114]
[1743390541039,0.30399168,605.06,603.48,0.33141114]
[1743390541242,0.28794003,605.03,603.48,0.33141114]
[1743390541438,0.30399168,605.02,603.48,0.33141114]
[1743390542045,0.28794003,605.03,603.48,0.33141114]
[1743390542247,0.30398958,605.02,603.48,0.33141114]
[1743390542946,0.30398958,605.01,603.48,0.33141114]
[1743390543245,0.30398958,605.0,603.48,0.33141114]
[1743390545748,1.239,605.07,603.48,0.33141114]
[1743390545943,0.30401265,605.06,603.48,0.33141114]
[1743390546143,0.28795552,604.99,603.48,0.33141114]
[1743390546343,0.30401265,604.98,603.48,0.33141114]
[1743390546544,0.30401265,605.06,603.48,0.33141114]
[1743390546743,0.30401265,605.05,603.48,0.33141114]
[1743390547050,0.30401265,605.04,603.48,0.33141114]
[1743390548947,1.10483376,605.06,603.48,0.33141114]
[1743390549146,0.28796266,605.03,603.48,0.33141114]
[1743390549346,0.30401265,605.02,603.48,0.33141114]
[1743390552051,0.30401265,605.01,603.48,0.33141114]
[1743390552252,0.28796386,605.01,603.48,0.33141114]
[1743390552454,0.30401265,605.0,603.48,0.33141114]
[1743390553051,1.3728041,604.99,603.48,0.33141114]
[1743390553247,2.7664075,604.98,603.48,0.33141114]
[1743390553451,1.6768991,604.97,603.48,0.33141114]
[1743390553648,0.63469537,604.96,603.48,0.33141114]
[1743390553851,0.304095,604.95,603.48,0.33141114]
[1743390554251,1.3936034,604.95,603.48,0.33141114]
[1743390554450,1.6768991,604.94,603.48,0.33141114]
[1743390554655,0.304095,604.93,603.48,0.33141114]
[1743390554954,1.39492023,604.92,603.48,0.33141114]
[1743390555157,0.30410963,604.91,603.48,0.33141114]
[1743390555551,1.39492023,604.91,603.48,0.33141114]
[1743390555757,0.30410963,604.9,603.48,0.33141114]
[1743390556050,0.30410963,604.89,603.48,0.33141114]
[1743390556258,0.30410963,604.88,603.48,0.33141114]
[1743390556455,0.30410963,604.9,603.48,0.33141114]
[1743390556654,0.30410963,604.89,603.48,0.33141114]
[1743390556857,1.67800772,604.89,603.48,0.33141114]
[1743390557052,0.30410963,604.88,603.48,0.33141114]
[1743390557257,0.30410963,604.89,603.48,0.33141114]
[1743390557458,0.30410963,604.88,603.48,0.33141114]
[1743390557657,0.30410963,604.87,603.48,0.33141114]
[1743390557859,0.30410963,604.86,603.48,0.33141114]
[1743390558059,0.30410963,604.85,603.48,0.33141114]
[1743390558253,0.28800795,604.86,603.48,0.33141114]
[1743390558456,1.67807511,604.85,603.48,0.33141114]
[1743390558657,0.63484298,604.84,603.48,0.33141114]
[1743390558859,0.63484844,604.83,603.48,0.33141114]
[1743390559061,0.63485391,604.82,603.48,0.33141114]
[1743390559354,0.63485938,604.81,603.48,0.33141114]
[1743390559553,1.72567545,604.8,603.48,0.33141114]
[1743390559754,0.63487031,604.79,603.48,0.33141114]
[1743390559953,0.63487578,604.78,603.48,0.33141114]
[1743390560253,0.30417702,604.77,603.48,0.33141114]
[1743390560659,0.3307097,604.76,603.48,0.33141114]
[1743390560858,0.30417702,604.75,603.48,0.33141114]
[1743390561157,0.33072064,604.74,603.48,0.33141114]
[1743390561352,0.30417702,604.73,603.48,0.33141114]
[1743390561658,0.33073157,604.72,603.48,0.33141114]
[1743390561954,1.12017702,604.71,603.48,0.33141114]
[1743390562158,0.30417702,604.7,603.48,0.33141114]
[1743390564354,0.28808901,604.69,603.48,0.33141114]
[1743390564559,0.30417702,604.68,603.48,0.33141114]
[1743390565057,0.28808901,604.69,603.48,0.33141114]
[1743390565058,0.30417702,604.67,603.48,0.33141114]
[1743390565255,0.30417702,604.66,603.48,0.33141114]
[1743390565660,0.30417702,604.65,603.48,0.33141114]
[1743390565859,0.30417702,604.68,603.48,0.33141114]
[1743390566156,0.30417702,604.67,603.48,0.33141114]
[1743390566359,0.30417702,604.66,603.48,0.33141114]
[1743390566561,0.30417702,604.65,603.48,0.33141114]
[1743390566761,0.30417702,604.64,603.48,0.33141114]
[1743390566961,0.30417702,604.63,603.48,0.33141114]
[1743390567161,0.30417702,604.62,603.48,0.33141114]
[1743390567361,0.30417702,604.61,603.48,0.33141114]
[1743390567557,0.30417702,604.6,603.48,0.33141114]
[1743390567757,0.30417702,604.59,603.48,0.33141114]
[1743390567960,0.30417702,604.58,603.48,0.33141114]
[1743390568161,0.30417702,604.57,603.48,0.33141114]
[1743390568356,0.30417702,604.68,603.48,0.33141114]
[1743390568556,0.30417702,604.67,603.48,0.33141114]
[1743390568761,0.30417702,604.66,603.48,0.33141114]
[1743390568962,0.30417702,604.65,603.48,0.33141114]
[1743390569157,0.30417702,604.64,603.48,0.33141114]
[1743390569362,0.30417702,604.63,603.48,0.33141114]
[1743390569563,0.30417702,604.62,603.48,0.33141114]
[1743390569762,1.13008908,604.68,603.48,0.33141114]
[1743390570062,0.63501761,604.67,603.48,0.33141114]
[1743390570263,0.63502308,604.66,603.48,0.33141114]
[1743390570462,0.63502855,604.65,603.48,0.33141114]
[1743390570657,0.63503402,604.64,603.48,0.33141114]
[1743390570861,0.63503949,604.63,603.48,0.33141114]
[1743390571060,0.63504496,604.62,603.48,0.33141114]
[1743390571260,0.63505044,604.61,603.48,0.33141114]
[1743390571456,0.63505591,604.6,603.48,0.33141114]
[1743390571657,0.30425869,604.59,603.48,0.33141114]
[1743390573064,0.28812002,604.58,603.48,0.33141114]
[1743390573262,0.30425869,604.57,603.48,0.33141114]
[1743390576062,0.30425869,604.59,603.48,0.33141114]
[1743390576260,0.28825844,604.56,603.48,0.33141114]
[1743390576458,0.30425869,604.55,603.48,0.33141114]
[1743390578961,0.30425869,604.59,603.48,0.33141114]
[1743390579165,0.28810332,604.54,603.48,0.33141114]
[1743390579365,0.30425869,604.53,603.48,0.33141114]
[1743390581967,0.30425869,604.59,603.48,0.33141114]
[1743390582166,0.2881057,604.52,603.48,0.33141114]
[1743390582467,0.30425869,604.51,603.48,0.33141114]
[1743390585469,0.2881057,604.52,603.48,0.33141114]
[1743390585665,0.30421283,604.51,603.48,0.33141114]
[1743390588168,0.59232092,604.5,603.48,0.33141114]
[1743390588368,0.30421283,604.49,603.48,0.33141114]
[1743390592569,0.3042539,604.48,603.48,0.33141114]
[1743390592767,0.3042539,604.49,603.48,0.33141114]
[1743390593968,0.3042539,604.59,603.48,0.33141114]
[1743390594172,0.28825247,604.48,603.48,0.33141114]
[1743390594472,0.3042539,604.47,603.48,0.33141114]
[1743390594675,0.3042539,604.46,603.48,0.33141114]
[1743390594974,0.3042539,604.45,603.48,0.33141114]
[1743390595175,0.33079722,604.6,603.48,0.33141114]
[1743390595176,0.3042539,604.59,603.48,0.33141114]
[1743390595375,0.28814029,604.44,603.48,0.33141114]
[1743390595568,0.3042539,604.43,603.48,0.33141114]
[1743390595970,0.28814268,604.43,603.48,0.33141114]
[1743390596278,0.3042539,604.42,603.48,0.33141114]
[1743390596971,0.3042539,604.57,603.48,0.33141114]
[1743390597174,0.635073,604.56,603.48,0.33141114]
[1743390597478,0.28825247,604.41,603.48,0.33141114]
[1743390597676,0.3042539,604.4,603.48,0.33141114]
[1743390597877,0.3042539,604.55,603.48,0.33141114]
[1743390598470,0.28814507,604.54,603.48,0.33141114]
[1743390598674,0.3042539,604.53,603.48,0.33141114]
[1743390600173,0.28814745,604.52,603.48,0.33141114]
[1743390600375,0.3042539,604.51,603.48,0.33141114]
[1743390601178,0.30429123,604.5,603.48,0.33141114]
[1743390601374,0.30429123,604.51,603.48,0.33141114]
[1743390601574,0.30429123,604.5,603.48,0.33141114]
[1743390601776,0.30429123,604.51,603.48,0.33141114]
[1743390601977,0.30429123,604.5,603.48,0.33141114]
[1743390602175,0.30429123,604.51,603.48,0.33141114]
[1743390602378,0.28814745,604.52,603.48,0.33141114]
[1743390602379,0.30429123,604.5,603.48,0.33141114]
[1743390602578,0.30429123,604.51,603.48,0.33141114]
[1743390602779,0.30429123,604.5,603.48,0.33141114]
[1743390602975,0.30429123,604.53,603.48,0.33141114]
[1743390603280,0.28826799,604.49,603.48,0.33141114]
[1743390603477,0.30429123,604.48,603.48,0.33141114]
[1743390606082,0.30429123,604.51,603.48,0.33141114]
[1743390606276,0.28817489,604.47,603.48,0.33141114]
[1743390606674,0.30429123,604.46,603.48,0.33141114]
[1743390608183,0.28817489,604.47,603.48,0.33141114]
[1743390608482,0.30430733,604.46,603.48,0.33141114]
[1743390608683,0.63518116,604.46,603.48,0.33141114]
[1743390608883,0.30430733,604.45,603.48,0.33141114]
[1743390609679,0.30430733,604.45,603.28,0.28819995]
[1743390610486,0.33088478,604.44,603.28,0.28819995]
[1743390610687,0.30430733,604.43,603.28,0.28819995]
[1743390610881,0.33089573,604.42,603.28,0.28819995]
[1743390611080,0.30430733,604.41,603.28,0.28819995]
[1743390611287,0.33090668,604.4,603.28,0.28819995]
[1743390611488,0.30430733,604.39,603.28,0.28819995]
[1743390611685,0.33091763,604.38,602.4,2.49252141]
[1743390611888,0.30435441,604.37,602.42,0.33199428]
[1743390612190,0.30435441,604.37,603.28,0.28831456]
[1743390612390,0.30435441,604.37,602.42,0.33199428]
[1743390613286,0.30435441,604.37,602.43,0.28832053]
[1743390613490,0.30435441,604.37,602.45,0.33197775]
[1743390613686,0.61923219,604.38,602.45,0.33197775]
[1743390613887,0.30434437,604.37,602.45,0.33197775]
[1743390615089,0.28831337,604.36,602.45,0.33197775]
[1743390615291,0.30434437,604.35,602.45,0.33197775]
[1743390617090,0.28831337,604.36,602.45,0.33197775]
[1743390617296,0.30437295,604.35,602.45,0.33197775]
[1743390617891,1.38804674,604.37,602.45,0.33197775]
[1743390618094,0.28833367,604.34,602.45,0.33197775]
[1743390618290,0.30437295,604.33,602.45,0.33197775]
[1743390618898,0.30437423,604.32,602.45,0.33197775]
[1743390619095,0.30437423,604.33,602.45,0.33197775]
[1743390619602,0.30437423,604.33,602.64,2.49252141]
[1743390619800,0.30437423,604.33,602.66,0.33186207]
[1743390620700,0.28833367,604.34,602.66,0.33186207]
[1743390620996,0.30437305,604.33,602.66,0.33186207]
[1743390621196,0.28831217,604.32,602.66,0.33186207]
[1743390621597,0.30437305,604.31,602.66,0.33186207]
[1743390622403,0.33096144,604.3,602.66,0.33186207]
[1743390622601,0.30437305,604.29,602.66,0.33186207]
[1743390623003,0.33097239,604.28,602.66,0.33186207]
[1743390623298,0.30437305,604.27,602.66,0.33186207]
[1743390623904,0.33098335,604.26,602.66,0.33186207]
[1743390624106,0.30437305,604.25,602.66,0.33186207]
[1743390624505,0.3309943,604.24,602.66,0.33186207]
[1743390624705,0.30437305,604.23,602.66,0.33186207]
[1743390624901,0.33100526,604.22,602.66,0.33186207]
[1743390625203,0.30437305,604.21,602.66,0.33186207]
[1743390625402,0.33101621,604.2,602.66,0.33186207]
[1743390625607,0.30437305,604.19,602.66,0.33186207]
[1743390625804,0.33102717,604.18,602.66,0.33186207]
[1743390626002,0.30437305,604.17,602.66,0.33186207]
[1743390626204,0.33103813,604.16,602.66,0.33186207]
[1743390626402,0.30437305,604.15,602.66,0.33186207]
[1743390627207,0.33104909,604.14,602.66,0.33186207]
[1743390627403,0.30437305,604.13,602.66,0.33186207]
[1743390627609,0.33106005,604.12,602.66,0.33186207]
[1743390627804,0.30437305,604.11,602.66,0.33186207]
[1743390628308,0.63543858,604.11,602.66,0.33186207]
[1743390628510,0.30437305,604.1,602.66,0.33186207]
[1743390630309,0.28840536,604.09,602.66,0.33186207]
[1743390630509,0.30437305,604.08,602.66,0.33186207]
[1743390631705,0.30449812,604.07,602.66,0.33186207]
[1743390631910,0.30449812,604.06,602.66,0.33186207]
[1743390632110,0.33109841,604.05,602.66,0.33186207]
[1743390632309,0.30449812,604.04,602.66,0.33186207]
[1743390632511,0.33110938,604.03,602.66,0.33186207]
[1743390632813,0.30449812,604.02,602.66,0.33186207]
[1743390633110,0.59293097,604.02,602.66,0.33186207]
[1743390633310,0.30449812,604.01,602.66,0.33186207]
[1743390635113,0.61954771,604.02,602.66,0.33186207]
[1743390635413,0.30450457,604.01,602.66,0.33186207]
[1743390636306,0.28841253,604.0,602.66,0.33186207]
[1743390636505,0.30450457,603.99,602.66,0.33186207]
[1743390636707,0.28841253,604.0,602.66,0.33186207]
[1743390637308,0.30450599,603.99,602.66,0.33186207]
[1743390638114,0.28841253,604.0,602.66,0.33186207]
[1743390638711,0.30450567,603.99,602.66,0.33186207]
[1743390639109,0.30450567,604.01,602.66,0.33186207]
[1743390639312,0.28841372,603.98,602.66,0.33186207]
[1743390640118,0.30450631,603.97,602.66,0.33186207]
[1743390640418,0.28841372,603.98,602.66,0.33186207]
[1743390641014,0.28328919,603.98,602.66,0.33186207]
[1743390641818,0.33111486,604.02,602.66,0.33186207]
[1743390642216,0.28838026,603.97,602.66,0.33186207]
[1743390643518,0.33111486,604.02,602.66,0.33186207]
[1743390643720,0.979,604.04,602.66,0.33186207]
[1743390645321,0.28837548,604.03,602.66,0.33186207]
[1743390647818,0.979,604.04,602.66,0.33186207]
[1743390648319,0.28837548,604.02,602.66,0.33186207]
[1743390650922,0.979,604.04,602.66,0.33186207]
[1743390651420,0.28837548,604.01,602.66,0.33186207]
[1743390653228,0.30447673,604.0,602.66,0.33186207]
[1743390656633,0.28837548,604.01,602.66,0.33186207]
[1743390656833,0.30450517,604.0,602.66,0.33186207]
[1743390657036,0.30450517,604.03,602.66,0.33186207]
[1743390657335,0.30450517,604.02,602.66,0.33186207]
[1743390657534,0.30450517,604.03,602.66,0.33186207]
[1743390657731,0.30450517,604.02,602.66,0.33186207]
[1743390658034,0.30450517,604.01,602.66,0.33186207]
[1743390658235,0.33112582,604.0,602.66,0.33186207]
[1743390658537,0.30454339,603.99,602.66,0.33186207]
[1743390660137,0.28844002,603.98,602.66,0.33186207]
[1743390660333,0.30454339,603.97,602.66,0.33186207]
[1743390661436,0.695,603.96,602.66,0.33186207]
[1743390661735,0.30454339,603.95,602.66,0.33186207]
[1743390662645,0.33115872,603.94,602.66,0.33186207]
[1743390662851,0.30454339,603.93,602.66,0.33186207]
[1743390663054,0.33115872,603.94,602.66,0.33186207]
[1743390663350,0.304606,603.93,602.66,0.33186207]
[1743390664148,0.33116969,603.92,602.66,0.33186207]
[1743390664351,0.304606,603.91,602.66,0.33186207]
[1743390664543,0.33118065,603.9,602.66,0.33186207]
[1743390664744,0.304606,603.89,602.66,0.33186207]
[1743390665550,0.33119162,603.88,602.66,0.33186207]
[1743390665751,0.304606,603.87,602.66,0.33186207]
[1743390667247,0.28857037,603.86,602.66,0.33186207]
[1743390667451,0.304606,603.85,602.66,0.33186207]
[1743390672062,0.304606,603.87,602.66,0.33186207]
[1743390672257,0.304606,603.84,602.66,0.33186207]
[1743390672463,0.304606,603.83,602.66,0.33186207]
[1743390672763,0.304606,603.82,602.66,0.33186207]
[1743390672961,0.28858473,603.82,602.66,0.33186207]
[1743390674858,0.33119162,603.88,602.66,0.33186207]
[1743390675158,0.3045998,603.87,602.66,0.33186207]
[1743390675459,0.59320607,603.87,602.66,0.33186207]
[1743390675659,0.3045998,603.86,602.66,0.33186207]
[1743390677766,0.28860627,603.87,602.66,0.33186207]
[1743390680863,0.33119162,603.88,602.66,0.33186207]
[1743390681262,0.28845197,603.86,602.66,0.33186207]
[1743390684071,0.33119162,603.88,602.66,0.33186207]
[1743390685270,0.28851415,603.87,602.66,0.33186207]
[1743390686772,0.972,603.86,602.66,0.33186207]
[1743390687566,0.30454302,603.85,602.66,0.33186207]
[1743390689072,0.30454302,603.85,602.66,0.31935426]
[1743390690070,0.972,603.86,602.66,0.31935426]
[1743390690274,0.28845676,603.84,602.66,0.31935426]
[1743390690576,0.30454463,603.83,602.66,0.31935426]
[1743390693179,0.30454463,603.82,602.66,0.31935426]
[1743390693370,0.28845915,603.82,602.66,0.31935426]
[1743390693573,0.30454463,603.81,602.66,0.31935426]
[1743390694171,0.28845915,603.82,602.66,0.31935426]
[1743390694576,0.30454663,603.81,602.66,0.31935426]
[1743390694876,0.28845915,603.82,602.66,0.31935426]
[1743390695869,0.972,603.86,602.66,0.31935426]
[1743390696274,0.2884448,603.81,602.66,0.31935426]
[1743390696675,0.972,603.86,602.66,0.31935426]
[1743390711286,0.2884209,603.88,602.66,0.31935426]
[1743390715187,0.839,603.87,602.66,0.31935426]
[1743390718294,0.28855482,603.86,602.66,0.31935426]
[1743390719894,0.839,603.87,602.66,0.31935426]
[1743390721289,0.59307941,603.86,602.66,0.31935426]
[1743390721489,0.28853927,603.86,602.66,0.31935426]
[1743390721692,0.30454013,603.85,602.66,0.31935426]
[1743390723293,0.30454013,603.86,602.66,0.31935426]
[1743390723496,0.30454013,603.84,602.66,0.31935426]
[1743390723696,0.30454013,603.83,602.66,0.31935426]
[1743390723890,0.30454013,603.86,602.66,0.31935426]
[1743390724293,0.28849263,603.84,602.66,0.31935426]
[1743390725996,0.839,603.87,602.66,0.31935426]
[1743390726196,0.3045027,603.86,602.66,0.31935426]
[1743390727192,0.28847828,603.85,602.66,0.31935426]
[1743390731994,0.839,603.87,602.66,0.31935426]
[1743390735193,0.28843165,603.86,602.66,0.31935426]
[1743390737901,0.839,603.87,602.66,0.31935426]
[1743390738199,0.28843165,603.85,602.66,0.31935426]
[1743390741106,0.839,603.87,602.66,0.31935426]
[1743390741306,0.28843165,603.84,602.66,0.31935426]
[1743390744009,0.839,603.87,602.66,0.31935426]
[1743390745110,1.37665347,604.09,602.66,0.31935426]
[1743390745312,0.28850578,603.86,602.66,0.31935426]